[Event "Hungarian Rapid-ch 2022"]
[Site "Ajka"]
[Date "2022.07.16"]
[Round "5.20"]
[White "Egresi, Mate"]
[Black "Marton, Jozsef"]
[Result "1-0"]
[ECO "D37"]
[WhiteElo "2376"]
[BlackElo "2059"]
[Annotator "ChessBase"]
[PlyCount "109"]
[EventDate "2022.07.15"]
[EventType "swiss"]
[EventCountry "HUN"]
[SourceTitle "playchess.com"]
[Source "ChessBase"]
[SourceQuality "1"]
[TimeControl "900+10"]

1. d4 {[%emt 0:00:12]} d5 {[%emt 0:00:11]} 2. c4 {[%emt 0:00:02]} e6 {[%emt 0:00:02]} 3. Nf3 {[%emt 0:00:01]} Nf6 {[%emt 0:00:03]} 4. Nc3 Be7 {[%emt 0:00:02]} 5. Bf4 {[%emt 0:00:03]} O-O {[%emt 0:00:04]} 6. Qc2 {[%emt 0:00:02]} c5 {[%emt 0:00:31]} 7. dxc5 {[%emt 0:00:03]} Bxc5 {[%emt 0:00:28]} 8. e3 {[%emt 0:00:02]} Nc6 {[%emt 0:00:25]} 9. a3 {[%emt 0:00:02]} Be7 {[%emt 0:03:03]} 10. Rd1 {[%emt 0:00:03]} Qa5 {[%emt 0:00:13]} 11. Be2 {[%emt 0:00:02]} dxc4 {[%emt 0:00:43]} 12. Bxc4 {[%emt 0:00:12]} e5 {[%emt 0:00:50]} 13. Bg3 {[%emt 0:00:57]} Bg4 {[%emt 0:00:27]} 14. O-O {[%emt 0:00:40]} h6 {[%emt 0:01:31]} 15. Nd5 {[%emt 0:01:34]} Nxd5 {[%emt 0:03:12]} 16. Rxd5 {[%emt 0:00:06]} Qb6 {[%emt 0:00:04]} 17. Rb5 {[%emt 0:00:21]} Qd8 {[%emt 0:00:28]} 18. Nxe5 {[%emt 0:02:27]} Nxe5 {[%emt 0:00:11]} 19. Bxe5 {[%emt 0:00:06]} Qc8 {[%emt 0:00:24]} 20. Qb3 {[%emt 0:00:38]} b6 {[%emt 0:00:39]} 21. Bd5 {[%emt 0:00:12]} Be6 {[%emt 0:00:02]} 22. Bxe6 {[%emt 0:02:20]} Qxe6 {[%emt 0:00:02]} 23. Qxe6 {[%emt 0:00:01]} fxe6 {[%emt 0:00:01]} 24. Rb3 {[%emt 0:00:05]} Rfd8 {[%emt 0:00:13]} 25. Rc3 {[%emt 0:00:07]} Rac8 {[%emt 0:00:55]} 26. Rfc1 {[%emt 0:00:05]} Rxc3 {[%emt 0:00:04]} 27. Bxc3 {[%emt 0:00:01]} Kf7 {[%emt 0:00:16]} 28. Kf1 {[%emt 0:00:02]} Rd7 {[%emt 0:00:53]} 29. Ke2 {[%emt 0:00:04]} Bf6 {[%emt 0:00:23]} 30. Bxf6 {[%emt 0:01:06]} Kxf6 {[%emt 0:00:01]} 31. e4 {[%emt 0:00:01]} g5 {[%emt 0:00:18]} 32. Ke3 {[%emt 0:00:04]} Ke5 {[%emt 0:00:36]} 33. f3 {[%emt 0:00:12]} Kf6 {[%emt 0:00:14]} 34. g3 {[%emt 0:00:01]} Rd6 {[%emt 0:00:31]} 35. f4 {[%emt 0:02:06]} Rd7 {[%emt 0:00:30]} 36. Rc6 {[%emt 0:00:03]} gxf4+ {[%emt 0:00:58]} 37. gxf4 {[%emt 0:00:05]} Kf7 {[%emt 0:00:08]} 38. b4 {[%emt 0:00:56]} Rd1 {[%emt 0:00:28]} 39. Rc7+ {[%emt 0:00:05]} Kf6 {[%emt 0:00:08]} 40. Rxa7 {[%emt 0:00:10]} Re1+ {[%emt 0:00:02]} 41. Kf3 {[%emt 0:00:08]} Rf1+ {[%emt 0:00:05]} 42. Kg3 {[%emt 0:00:06]} Rg1+ {[%emt 0:00:05]} 43. Kf2 {[%emt 0:00:03]} Rh1 {[%emt 0:00:08]} 44. Kg2 {[%emt 0:00:04]} Re1 {[%emt 0:00:02]} 45. Rb7 {[%emt 0:03:16]} Rxe4 {[%emt 0:00:05]} 46. Rxb6 {[%emt 0:00:04]} Rxf4 {[%emt 0:00:08]} 47. a4 {[%emt 0:00:01]} Kf5 {[%emt 0:00:17]} 48. a5 {[%emt 0:00:04]} Rc4 {[%emt 0:00:17]} 49. a6 {[%emt 0:00:01]} e5 {[%emt 0:00:09]} 50. a7 {[%emt 0:00:24]} Rc2+ {[%emt 0:00:02]} 51. Kf1 {[%emt 0:00:32]} Ra2 {[%emt 0:00:11]} 52. Rb7 {[%emt 0:00:01]} Kf4 {[%emt 0:00:32]} 53. b5 {[%emt 0:00:03]} Kf3 {[%emt 0:00:11]} 54. Rf7+ {[%emt 0:00:02]} Ke3 {[%emt 0:00:01]} 55. b6 {[%emt 0:00:05]} 1-0

[Event "Hungarian Rapid-ch 2022"]
[Site "Ajka"]
[Date "2022.07.16"]
[Round "5.21"]
[White "Kiss, Pal"]
[Black "Szalay-Ocsak, Bank"]
[Result "1/2-1/2"]
[ECO "E10"]
[WhiteElo "2243"]
[BlackElo "2146"]
[Annotator "ChessBase"]
[PlyCount "45"]
[EventDate "2022.07.15"]
[EventType "swiss"]
[EventCountry "HUN"]
[SourceTitle "playchess.com"]
[Source "ChessBase"]
[SourceQuality "1"]
[TimeControl "900+10"]

1. d4 {[%emt 0:00:13]} Nf6 {[%emt 0:06:47]} 2. c4 {[%emt 0:00:19]} e6 {[%emt 0:00:01]} 3. Nf3 {[%emt 0:00:03]} d5 {[%emt 0:00:03]} 4. g3 {[%emt 0:00:10]} Bb4+ {[%emt 0:00:03]} 5. Bd2 {[%emt 0:00:02]} a5 {[%emt 0:00:10]} 6. Qc2 {[%emt 0:00:37]} O-O {[%emt 0:00:37]} 7. Bg2 {[%emt 0:00:03]} c5 {[%emt 0:00:14]} 8. dxc5 {[%emt 0:01:28]} d4 {[%emt 0:01:20]} 9. O-O {[%emt 0:00:44]} Nc6 {[%emt 0:01:07]} 10. Bg5 {[%emt 0:01:56]} h6 {[%emt 0:01:22]} 11. Bxf6 {[%emt 0:00:14]} Qxf6 {[%emt 0:00:06]} 12. Nbd2 {[%emt 0:00:28]} Bxc5 {[%emt 0:00:43]} 13. Ne1 {[%emt 0:01:37]} e5 {[%emt 0:01:29]} 14. Ne4 {[%emt 0:03:00]} Qe7 {[%emt 0:00:10]} 15. Nd3 {[%emt 0:01:34]} Nb4 {[%emt 0:00:30]} 16. Nxb4 {[%emt 0:01:51]} axb4 {[%emt 0:00:16]} 17. Nxc5 {[%emt 0:00:33]} Qxc5 {[%emt 0:00:02]} 18. Qb3 {[%emt 0:00:29]} Be6 {[%emt 0:01:10]} 19. Bd5 {[%emt 0:00:51]} Bxd5 {[%emt 0:00:37]} 20. cxd5 {[%emt 0:00:02]} Rfd8 {[%emt 0:00:06]} 21. Rfc1 {[%emt 0:00:11]} Qxd5 {[%emt 0:00:12]} 22. Qxb4 {[%emt 0:00:02]} Rdc8 {[%emt 0:00:37]} 23. a3 1/2-1/2

[Event "Hungarian Rapid-ch 2022"]
[Site "Ajka"]
[Date "2022.07.16"]
[Round "5.22"]
[White "Jakab, Attila"]
[Black "Pap, Peter"]
[Result "1-0"]
[ECO "D30"]
[WhiteElo "2311"]
[BlackElo "2159"]
[Annotator "ChessBase"]
[PlyCount "33"]
[EventDate "2022.07.15"]
[EventType "swiss"]
[EventCountry "HUN"]
[SourceTitle "playchess.com"]
[Source "ChessBase"]
[SourceQuality "1"]
[TimeControl "900+10"]

1. d4 {[%emt 0:00:12]} d5 {[%emt 0:00:11]} 2. c4 {[%emt 0:00:03]} c6 {[%emt 0:00:02]} 3. Nf3 {[%emt 0:00:10]} Nf6 {[%emt 0:00:06]} 4. e3 {[%emt 0:00:02]} e6 {[%emt 0:00:05]} 5. Nbd2 {[%emt 0:00:11]} Nbd7 {[%emt 0:00:18]} 6. Bd3 {[%emt 0:00:07]} Bd6 {[%emt 0:00:06]} 7. O-O {[%emt 0:00:03]} O-O {[%emt 0:00:03]} 8. e4 {[%emt 0:00:03]} e5 {[%emt 0:00:02]} 9. cxd5 {[%emt 0:00:04]} cxd5 {[%emt 0:00:01]} 10. exd5 {[%emt 0:00:11]} exd4 {[%emt 0:00:13]} 11. Ne4 {[%emt 0:00:16]} Nb6 {[%emt 0:02:08]} 12. Nxf6+ {[%emt 0:00:30]} gxf6 {[%emt 0:00:44]} 13. Nxd4 {[%emt 0:00:19]} f5 {[%emt 0:01:05]} 14. Nxf5 {[%emt 0:00:08]} Bxf5 {[%emt 0:00:12]} 15. Bxf5 {[%emt 0:00:03]} Qh4 {[%emt 0:00:06]} 16. g3 {[%emt 0:00:05]} Qf6 {[%emt 0:00:03]} 17. Qh5 {[%emt 0:00:06]} 1-0

[Event "Hungarian Rapid-ch 2022"]
[Site "Ajka"]
[Date "2022.07.16"]
[Round "5.23"]
[White "Seres, Bela"]
[Black "Lizak, Peter"]
[Result "0-1"]
[ECO "C15"]
[WhiteElo "2207"]
[BlackElo "2400"]
[Annotator "ChessBase"]
[PlyCount "140"]
[EventDate "2022.07.15"]
[EventType "swiss"]
[EventCountry "HUN"]
[SourceTitle "playchess.com"]
[Source "ChessBase"]
[SourceQuality "1"]
[TimeControl "900+10"]

1. e4 {[%emt 0:00:10]} e6 {[%emt 0:00:12]} 2. d4 {[%emt 0:00:02]} d5 {[%emt 0:00:02]} 3. Nc3 {[%emt 0:00:00]} Bb4 {[%emt 0:00:02]} 4. exd5 {[%emt 0:00:01]} exd5 {[%emt 0:00:01]} 5. Qf3 {[%emt 0:00:01]} Ne7 {[%emt 0:00:27]} 6. Bd3 {[%emt 0:00:09]} Nbc6 {[%emt 0:00:17]} 7. Nge2 {[%emt 0:00:01]} Be6 {[%emt 0:00:08]} 8. a3 {[%emt 0:00:27]} Ba5 {[%emt 0:00:03]} 9. Be3 {[%emt 0:00:21]} Qd7 {[%emt 0:00:04]} 10. h3 {[%emt 0:00:02]} Ng6 {[%emt 0:04:05]} 11. Nf4 {[%emt 0:00:57]} Nxf4 {[%emt 0:00:29]} 12. Qxf4 {[%emt 0:00:02]} Ne7 {[%emt 0:00:26]} 13. b4 {[%emt 0:00:37]} Bb6 {[%emt 0:00:01]} 14. Ne2 {[%emt 0:00:01]} c6 {[%emt 0:00:10]} 15. Qg3 {[%emt 0:00:30]} Bf5 {[%emt 0:03:06]} 16. Bg5 {[%emt 0:01:36]} Bxd3 {[%emt 0:00:12]} 17. Qxd3 {[%emt 0:00:02]} Qf5 {[%emt 0:00:20]} 18. Qxf5 {[%emt 0:02:11]} Nxf5 {[%emt 0:00:01]} 19. c3 {[%emt 0:00:25]} Nd6 {[%emt 0:00:04]} 20. f3 {[%emt 0:00:38]} a5 {[%emt 0:00:04]} 21. Kf2 {[%emt 0:00:05]} f6 {[%emt 0:00:48]} 22. Bf4 {[%emt 0:00:34]} Nb5 {[%emt 0:00:16]} 23. Ke3 {[%emt 0:01:24]} Kd7 {[%emt 0:01:34]} 24. Kd3 {[%emt 0:02:16]} Rhe8 {[%emt 0:00:02]} 25. a4 {[%emt 0:00:52]} Rxe2 {[%emt 0:00:15]} 26. axb5 {[%emt 0:00:01]} Rxg2 {[%emt 0:00:13]} 27. bxc6+ {[%emt 0:00:02]} bxc6 {[%emt 0:00:34]} 28. bxa5 {[%emt 0:00:10]} Rxa5 {[%emt 0:00:12]} 29. Rag1 {[%emt 0:01:42]} Rxg1 {[%emt 0:00:15]} 30. Rxg1 {[%emt 0:00:00]} g5 {[%emt 0:00:01]} 31. Bd2 {[%emt 0:00:08]} Ke6 {[%emt 0:01:20]} 32. h4 {[%emt 0:00:25]} gxh4 {[%emt 0:00:15]} 33. Rh1 {[%emt 0:00:28]} Ra7 {[%emt 0:00:34]} 34. Rxh4 {[%emt 0:00:03]} Rg7 {[%emt 0:00:04]} 35. Rh3 {[%emt 0:00:27]} Bc7 {[%emt 0:00:06]} 36. Be3 {[%emt 0:00:34]} Bd6 {[%emt 0:00:03]} 37. Bd2 {[%emt 0:00:04]} Kf7 {[%emt 0:00:17]} 38. c4 {[%emt 0:00:35]} Ke6 {[%emt 0:00:01]} 39. cxd5+ {[%emt 0:00:11]} cxd5 {[%emt 0:00:03]} 40. Be3 {[%emt 0:00:17]} Ra7 {[%emt 0:00:09]} 41. Rh5 {[%emt 0:00:09]} Bf8 {[%emt 0:00:22]} 42. f4 {[%emt 0:00:29]} f5 {[%emt 0:00:03]} 43. Rh1 {[%emt 0:00:04]} h6 {[%emt 0:00:26]} 44. Ke2 {[%emt 0:00:25]} Ra2+ {[%emt 0:00:19]} 45. Kf3 {[%emt 0:00:01]} Ra3 {[%emt 0:00:01]} 46. Rb1 {[%emt 0:00:21]} Bg7 {[%emt 0:00:15]} 47. Rb6+ {[%emt 0:00:09]} Kf7 {[%emt 0:00:01]} 48. Kf2 {[%emt 0:00:00]} Ra4 {[%emt 0:00:40]} 49. Kf3 {[%emt 0:00:37]} h5 {[%emt 0:01:14]} 50. Rb7+ {[%emt 0:00:02]} Kg6 {[%emt 0:00:06]} 51. Rb6+ {[%emt 0:00:01]} Bf6 {[%emt 0:00:05]} 52. Bf2 {[%emt 0:00:08]} Kf7 {[%emt 0:00:23]} 53. Rb7+ {[%emt 0:00:08]} Ke8 {[%emt 0:00:05]} 54. Rh7 {[%emt 0:00:35]} Ra3+ {[%emt 0:00:16]} 55. Kg2 {[%emt 0:00:06]} Ra2 {[%emt 0:00:07]} 56. Kf3 {[%emt 0:00:03]} h4 {[%emt 0:00:40]} 57. Bxh4 {[%emt 0:00:14]} Rh2 {[%emt 0:01:30]} 58. Kg3 {[%emt 0:00:05]} Rh1 {[%emt 0:00:01]} 59. Rh6 {[%emt 0:00:28]} Bxd4 {[%emt 0:00:03]} 60. Rd6 {[%emt 0:00:17]} Rd1 {[%emt 0:00:03]} 61. Bf6 {[%emt 0:00:40]} Bc5 {[%emt 0:00:08]} 62. Rc6 {[%emt 0:00:04]} Bb4 {[%emt 0:00:29]} 63. Be5 {[%emt 0:00:20]} Rd3+ {[%emt 0:00:20]} 64. Kh4 {[%emt 0:00:05]} Be7+ {[%emt 0:00:03]} 65. Kh5 {[%emt 0:00:00]} Kf7 {[%emt 0:00:10]} 66. Rc3 {[%emt 0:01:39]} Rxc3 {[%emt 0:00:01]} 67. Bxc3 {[%emt 0:00:02]} Bf6 {[%emt 0:00:01]} 68. Bd2 {[%emt 0:00:11]} d4 {[%emt 0:00:02]} 69. Kh6 {[%emt 0:00:04]} d3 {[%emt 0:00:03]} 70. Kh5 {[%emt 0:00:02]} Ke6 {[%emt 0:00:33]} 0-1

[Event "Hungarian Rapid-ch 2022"]
[Site "Ajka"]
[Date "2022.07.16"]
[Round "5.24"]
[White "Gaal, Zsoka"]
[Black "Hoang, Thanh Trang"]
[Result "0-1"]
[ECO "A04"]
[WhiteElo "2313"]
[BlackElo "2376"]
[Annotator "ChessBase"]
[PlyCount "72"]
[EventDate "2022.07.15"]
[EventType "swiss"]
[EventCountry "HUN"]
[SourceTitle "playchess.com"]
[Source "ChessBase"]
[SourceQuality "1"]
[TimeControl "900+10"]

1. Nf3 {[%emt 0:00:18]} f5 {[%emt 0:00:14]} 2. g3 {[%emt 0:00:03]} Nf6 {[%emt 0:00:04]} 3. Bg2 {[%emt 0:00:02]} e6 {[%emt 0:00:06]} 4. O-O {[%emt 0:00:24]} d5 {[%emt 0:00:06]} 5. c4 {[%emt 0:00:27]} Bd6 {[%emt 0:00:21]} 6. d3 {[%emt 0:00:25]} O-O {[%emt 0:00:35]} 7. Nc3 {[%emt 0:00:27]} dxc4 {[%emt 0:00:21]} 8. dxc4 {[%emt 0:00:30]} Nc6 {[%emt 0:00:17]} 9. Nb5 {[%emt 0:03:49]} e5 {[%emt 0:00:37]} 10. Nxd6 {[%emt 0:00:33]} cxd6 {[%emt 0:00:07]} 11. b3 {[%emt 0:00:40]} Qc7 {[%emt 0:00:27]} 12. Ba3 {[%emt 0:01:02]} Rd8 {[%emt 0:00:27]} 13. Bb2 {[%emt 0:01:46]} h6 {[%emt 0:02:43]} 14. Rc1 {[%emt 0:00:19]} Be6 {[%emt 0:01:05]} 15. Qc2 {[%emt 0:00:12]} Rac8 {[%emt 0:01:14]} 16. Rfd1 {[%emt 0:00:11]} Qf7 {[%emt 0:01:19]} 17. Qb1 {[%emt 0:01:13]} Qh5 {[%emt 0:01:31]} 18. c5 {[%emt 0:03:56]} dxc5 {[%emt 0:01:12]} 19. Rxc5 {[%emt 0:00:57]} e4 {[%emt 0:02:47]} 20. Nd4 {[%emt 0:00:07]} Nxd4 {[%emt 0:00:12]} 21. Bxd4 {[%emt 0:00:02]} Qxe2 {[%emt 0:00:59]} 22. Re1 {[%emt 0:00:02]} Qa6 {[%emt 0:00:55]} 23. Rxc8 {[%emt 0:00:26]} Bxc8 {[%emt 0:00:04]} 24. Qb2 {[%emt 0:00:04]} Kf7 {[%emt 0:00:37]} 25. Rc1 {[%emt 0:00:02]} Be6 {[%emt 0:00:04]} 26. a3 {[%emt 0:00:58]} Qb5 {[%emt 0:00:08]} 27. b4 {[%emt 0:00:15]} b6 {[%emt 0:00:00]} 28. Bf1 {[%emt 0:00:03]} Qd5 {[%emt 0:00:05]} 29. Be5 {[%emt 0:00:19]} Ne8 {[%emt 0:00:44]} 30. Bc4 {[%emt 0:00:13]} Qxc4 {[%emt 0:00:08]} 31. Rxc4 {[%emt 0:00:03]} Rd1+ {[%emt 0:00:01]} 32. Kg2 {[%emt 0:00:02]} Bxc4 {[%emt 0:00:02]} 33. h3 {[%emt 0:00:21]} Bd5 {[%emt 0:00:07]} 34. Qc2 {[%emt 0:00:18]} e3+ {[%emt 0:00:02]} 35. f3 {[%emt 0:00:01]} Rd2+ {[%emt 0:00:01]} 36. Qxd2 {[%emt 0:00:03]} exd2 {[%emt 0:00:01]} 0-1

[Event "Hungarian Rapid-ch 2022"]
[Site "Ajka"]
[Date "2022.07.16"]
[Round "5.25"]
[White "Straubinger, Daniel"]
[Black "Nemeth, Zalan"]
[Result "1-0"]
[ECO "B33"]
[WhiteElo "2349"]
[BlackElo "2194"]
[Annotator "ChessBase"]
[PlyCount "77"]
[EventDate "2022.07.15"]
[EventType "swiss"]
[EventCountry "HUN"]
[SourceTitle "playchess.com"]
[Source "ChessBase"]
[SourceQuality "1"]
[TimeControl "900+10"]

1. e4 {[%emt 0:00:13]} c5 {[%emt 0:00:27]} 2. Nf3 {[%emt 0:00:07]} Nc6 {[%emt 0:00:03]} 3. d4 {[%emt 0:00:03]} cxd4 {[%emt 0:00:02]} 4. Nxd4 {[%emt 0:00:15]} Nf6 {[%emt 0:00:06]} 5. Nc3 {[%emt 0:00:21]} e6 {[%emt 0:00:02]} 6. Ndb5 {[%emt 0:00:30]} Bc5 {[%emt 0:00:06]} 7. Bf4 {[%emt 0:00:18]} O-O {[%emt 0:00:08]} 8. Bc7 {[%emt 0:00:02]} Qe7 {[%emt 0:00:02]} 9. Bd6 {[%emt 0:00:01]} Bxd6 {[%emt 0:00:05]} 10. Qxd6 {[%emt 0:00:02]} Qd8 {[%emt 0:00:02]} 11. O-O-O {[%emt 0:00:24]} a6 {[%emt 0:00:01]} 12. Nd4 {[%emt 0:00:05]} Ne7 {[%emt 0:00:03]} 13. h4 {[%emt 0:00:11]} b5 {[%emt 0:01:10]} 14. h5 {[%emt 0:00:22]} b4 {[%emt 0:01:04]} 15. Qxb4 {[%emt 0:00:21]} e5 {[%emt 0:00:49]} 16. Nf3 {[%emt 0:02:05]} Nc6 {[%emt 0:00:02]} 17. Qc5 {[%emt 0:00:11]} Ng4 {[%emt 0:01:11]} 18. Rd2 {[%emt 0:02:54]} Bb7 {[%emt 0:02:29]} 19. Rh4 {[%emt 0:00:32]} Nh6 {[%emt 0:00:13]} 20. Rh3 {[%emt 0:00:56]} Rc8 {[%emt 0:01:09]} 21. Nxe5 {[%emt 0:01:49]} d6 {[%emt 0:01:19]} 22. Nxc6 {[%emt 0:01:29]} Rxc6 {[%emt 0:00:02]} 23. Qd4 {[%emt 0:00:10]} f5 {[%emt 0:00:27]} 24. e5 {[%emt 0:01:28]} f4 {[%emt 0:00:17]} 25. Bc4+ {[%emt 0:00:43]} Kh8 {[%emt 0:00:10]} 26. Bd5 {[%emt 0:00:05]} dxe5 {[%emt 0:00:21]} 27. Qa7 {[%emt 0:00:40]} Rxc3 {[%emt 0:00:31]} 28. Rxc3 {[%emt 0:00:09]} Bxd5 {[%emt 0:00:02]} 29. Qc5 {[%emt 0:00:21]} Qf6 {[%emt 0:00:15]} 30. Qxd5 {[%emt 0:00:14]} Nf5 {[%emt 0:00:02]} 31. Rc6 {[%emt 0:00:23]} Qh4 {[%emt 0:00:03]} 32. Qxe5 {[%emt 0:00:25]} Qxh5 {[%emt 0:00:14]} 33. b4 {[%emt 0:00:23]} h6 {[%emt 0:00:05]} 34. Qc5 {[%emt 0:00:33]} Rf7 {[%emt 0:00:26]} 35. Kb2 {[%emt 0:00:06]} Qg4 {[%emt 0:00:19]} 36. Rc7 {[%emt 0:00:51]} Rf6 {[%emt 0:00:15]} 37. Rc6 {[%emt 0:00:11]} Rf7 {[%emt 0:00:01]} 38. Qc4 {[%emt 0:00:01]} Rf8 {[%emt 0:00:16]} 39. Rc8 {[%emt 0:00:08]} 1-0

[Event "Hungarian Rapid-ch 2022"]
[Site "Ajka"]
[Date "2022.07.16"]
[Round "5.26"]
[White "Tancsa, Tamas"]
[Black "Emodi, Barnabas"]
[Result "0-1"]
[ECO "B12"]
[WhiteElo "2103"]
[BlackElo "2341"]
[Annotator "ChessBase"]
[PlyCount "46"]
[EventDate "2022.07.15"]
[EventType "swiss"]
[EventCountry "HUN"]
[SourceTitle "playchess.com"]
[Source "ChessBase"]
[SourceQuality "1"]
[TimeControl "900+10"]

1. e4 {[%emt 0:00:12]} c6 {[%emt 0:00:22]} 2. d4 {[%emt 0:00:02]} d5 {[%emt 0:00:03]} 3. e5 {[%emt 0:00:01]} g6 {[%emt 0:00:19]} 4. f4 {[%emt 0:00:26]} Qb6 {[%emt 0:00:23]} 5. c4 {[%emt 0:01:18]} dxc4 {[%emt 0:00:56]} 6. Nc3 {[%emt 0:00:24]} Be6 {[%emt 0:01:00]} 7. Nf3 {[%emt 0:00:05]} Bd5 {[%emt 0:00:36]} 8. Be2 {[%emt 0:05:01]} Nh6 {[%emt 0:01:03]} 9. O-O {[%emt 0:00:18]} Nd7 {[%emt 0:01:34]} 10. Qa4 {[%emt 0:03:34]} Nf5 {[%emt 0:02:10]} 11. Bxc4 {[%emt 0:01:16]} Bxf3 {[%emt 0:02:04]} 12. Rxf3 {[%emt 0:00:02]} e6 {[%emt 0:00:55]} 13. Ne2 {[%emt 0:02:00]} Nxd4 {[%emt 0:01:51]} 14. Nxd4 {[%emt 0:00:29]} Qxd4+ {[%emt 0:00:04]} 15. Be3 {[%emt 0:00:03]} Nb6 {[%emt 0:00:29]} 16. Qb3 {[%emt 0:01:37]} Qxc4 {[%emt 0:01:46]} 17. Bxb6 {[%emt 0:00:02]} Bc5+ {[%emt 0:00:26]} 18. Bxc5 {[%emt 0:00:01]} Qxc5+ {[%emt 0:00:01]} 19. Kf1 {[%emt 0:00:37]} O-O-O {[%emt 0:00:22]} 20. Rc3 {[%emt 0:00:47]} Qd4 {[%emt 0:00:30]} 21. g3 {[%emt 0:00:00]} Qe4 {[%emt 0:00:18]} 22. Kg1 {[%emt 0:00:24]} Rd2 {[%emt 0:00:09]} 23. Rf3 {[%emt 0:00:05]} Qe2 {[%emt 0:00:05]} 0-1

[Event "Hungarian Rapid-ch 2022"]
[Site "Ajka"]
[Date "2022.07.16"]
[Round "5.27"]
[White "Pogany, Zsombor"]
[Black "Lakos, Nikoletta"]
[Result "1-0"]
[ECO "C41"]
[WhiteElo "2178"]
[BlackElo "2203"]
[Annotator "ChessBase"]
[PlyCount "58"]
[EventDate "2022.07.15"]
[EventType "swiss"]
[EventCountry "HUN"]
[SourceTitle "playchess.com"]
[Source "ChessBase"]
[SourceQuality "1"]
[TimeControl "900+10"]

1. e4 {[%emt 0:00:14]} d6 {[%emt 0:00:20]} 2. d4 {[%emt 0:00:03]} Nf6 {[%emt 0:00:24]} 3. Nc3 {[%emt 0:00:03]} e5 {[%emt 0:01:30]} 4. Nf3 {[%emt 0:00:05]} Nbd7 {[%emt 0:00:51]} 5. a4 {[%emt 0:00:42]} Be7 {[%emt 0:00:52]} 6. h3 {[%emt 0:00:15]} exd4 {[%emt 0:00:42]} 7. Nxd4 {[%emt 0:00:03]} Nc5 {[%emt 0:00:01]} 8. Qf3 {[%emt 0:02:23]} O-O {[%emt 0:00:27]} 9. Bf4 {[%emt 0:01:49]} Ne6 {[%emt 0:00:51]} 10. Nxe6 {[%emt 0:00:47]} fxe6 {[%emt 0:00:02]} 11. Bd2 {[%emt 0:03:47]} d5 {[%emt 0:00:49]} 12. Qe2 {[%emt 0:01:42]} Bc5 {[%emt 0:05:29]} 13. O-O-O {[%emt 0:00:39]} Nxe4 {[%emt 0:03:20]} 14. Nxe4 {[%emt 0:00:09]} dxe4 {[%emt 0:00:01]} 15. Be3 {[%emt 0:01:20]} Qe7 {[%emt 0:00:04]} 16. Qc4 {[%emt 0:01:15]} Bxe3+ {[%emt 0:00:14]} 17. fxe3 {[%emt 0:00:03]} Kh8 {[%emt 0:00:24]} 18. Qxe4 {[%emt 0:00:36]} e5 {[%emt 0:00:03]} 19. g4 {[%emt 0:00:37]} Bd7 {[%emt 0:00:08]} 20. Bd3 {[%emt 0:00:15]} g6 {[%emt 0:00:01]} 21. Rhf1 {[%emt 0:01:01]} Bc6 {[%emt 0:00:00]} 22. Qc4 {[%emt 0:00:19]} Rad8 {[%emt 0:00:59]} 23. Be4 {[%emt 0:00:18]} Rxf1 {[%emt 0:00:40]} 24. Rxf1 {[%emt 0:00:03]} Bxe4 {[%emt 0:00:10]} 25. Qxe4 {[%emt 0:00:01]} c6 {[%emt 0:00:01]} 26. h4 {[%emt 0:00:47]} Rd5 {[%emt 0:00:43]} 27. h5 {[%emt 0:00:07]} Kg7 {[%emt 0:00:04]} 28. hxg6 {[%emt 0:00:13]} hxg6 {[%emt 0:00:02]} 29. Qf3 {[%emt 0:00:10]} e4 {[%emt 0:00:00]} 1-0

[Event "Hungarian Rapid-ch 2022"]
[Site "Ajka"]
[Date "2022.07.16"]
[Round "5.29"]
[White "Martini, Balazs"]
[Black "Giang, Tran Nam"]
[Result "0-1"]
[ECO "D00"]
[WhiteElo "2348"]
[BlackElo "2144"]
[Annotator "ChessBase"]
[PlyCount "85"]
[EventDate "2022.07.15"]
[EventType "swiss"]
[EventCountry "HUN"]
[SourceTitle "playchess.com"]
[Source "ChessBase"]
[SourceQuality "1"]
[TimeControl "900+10"]

1. d4 {[%emt 0:00:13]} d5 {[%emt 0:00:12]} 2. Bf4 {[%emt 0:00:03]} Nf6 {[%emt 0:00:01]} 3. e3 {[%emt 0:00:03]} c5 {[%emt 0:00:02]} 4. c3 {[%emt 0:00:02]} Nc6 {[%emt 0:00:02]} 5. Nd2 {[%emt 0:00:03]} Bf5 {[%emt 0:00:06]} 6. Qb3 {[%emt 0:00:03]} Qc8 {[%emt 0:00:10]} 7. Ngf3 {[%emt 0:00:05]} c4 {[%emt 0:00:21]} 8. Qd1 {[%emt 0:00:43]} e6 {[%emt 0:00:18]} 9. h3 {[%emt 0:00:08]} h6 {[%emt 0:00:03]} 10. Be2 {[%emt 0:00:03]} Be7 {[%emt 0:00:07]} 11. a4 {[%emt 0:00:25]} O-O {[%emt 0:00:48]} 12. O-O {[%emt 0:00:05]} b6 {[%emt 0:00:42]} 13. Re1 {[%emt 0:00:15]} a6 {[%emt 0:00:10]} 14. Ne5 {[%emt 0:00:54]} Nxe5 {[%emt 0:00:20]} 15. Bxe5 {[%emt 0:00:10]} Rd8 {[%emt 0:00:41]} 16. Bf3 {[%emt 0:00:30]} b5 {[%emt 0:00:28]} 17. e4 {[%emt 0:01:15]} dxe4 {[%emt 0:00:43]} 18. Bxf6 {[%emt 0:01:02]} Bxf6 {[%emt 0:00:04]} 19. Nxe4 {[%emt 0:00:36]} Bxe4 {[%emt 0:00:13]} 20. Bxe4 {[%emt 0:00:30]} Rb8 {[%emt 0:00:05]} 21. axb5 {[%emt 0:00:31]} axb5 {[%emt 0:00:09]} 22. Qh5 {[%emt 0:00:45]} Qc7 {[%emt 0:01:37]} 23. Ra2 {[%emt 0:02:14]} b4 {[%emt 0:01:16]} 24. Qf3 {[%emt 0:03:56]} bxc3 {[%emt 0:02:50]} 25. bxc3 {[%emt 0:00:03]} Rd7 {[%emt 0:02:26]} 26. Bc2 {[%emt 0:00:45]} Rd5 {[%emt 0:00:52]} 27. Rea1 {[%emt 0:01:24]} Rdb5 {[%emt 0:01:21]} 28. Ra7 {[%emt 0:00:58]} R5b7 {[%emt 0:00:52]} 29. R7a6 {[%emt 0:00:49]} Rb2 {[%emt 0:00:50]} 30. Qe4 {[%emt 0:00:55]} g6 {[%emt 0:00:28]} 31. Rc6 {[%emt 0:00:34]} Qd7 {[%emt 0:00:36]} 32. Raa6 {[%emt 0:00:10]} Bg7 {[%emt 0:00:26]} 33. g3 {[%emt 0:00:13]} e5 {[%emt 0:00:22]} 34. Kg2 {[%emt 0:00:14]} exd4 {[%emt 0:00:06]} 35. Rd6 {[%emt 0:00:00]} Qb7 {[%emt 0:00:12]} 36. Qxb7 {[%emt 0:00:08]} R8xb7 {[%emt 0:00:05]} 37. Be4 {[%emt 0:00:03]} Re7 {[%emt 0:00:09]} 38. Rd8+ {[%emt 0:00:28]} Kh7 {[%emt 0:00:03]} 39. Kf3 {[%emt 0:00:08]} d3 {[%emt 0:00:18]} 40. Rc6 {[%emt 0:00:04]} f5 {[%emt 0:00:16]} 41. Bd5 {[%emt 0:00:01]} Bxc3 {[%emt 0:00:24]} 42. Rxc4 {[%emt 0:00:14]} Be1 {[%emt 0:00:09]} 43. Kg2 0-1